bitfinex-derivatives/quotes_SOLF0:USTF0_20220104
["timestamp","ask_amount","ask_price","bid_price","bid_amount"]
[1641334511060,44.06338815,168.7,168.62,8.20950057]
[1641334511962,35.5525,168.7,168.62,8.20950057]
[1641334518476,35.5525,168.7,168.61,29.9517]
[1641334519071,39.5525,168.7,168.61,29.9517]
[1641334519975,4.0,168.69,168.61,29.9517]
[1641334520474,27.66479,168.68,168.61,29.9517]
[1641334522276,8.51299285,168.67,168.61,29.9517]
[1641334522478,8.51299285,168.67,168.58,20.0]
[1641334522678,8.51299285,168.67,168.58,50.6201]
[1641334523180,12.51299285,168.67,168.58,50.6201]
[1641334524083,6.1471743,168.67,168.59,2.03344456]
[1641334524583,27.66479,168.65,168.59,2.03344456]
[1641334524882,58.24179,168.65,168.59,2.03344456]
[1641334525382,2.1471743,168.64,168.59,2.03344456]
[1641334526187,58.24179,168.65,168.59,2.03344456]
[1641334526886,2.14770413,168.64,168.59,2.03344456]
[1641334527486,2.14770413,168.64,168.58,30.6201]
[1641334527487,29.9134,168.67,168.58,30.6201]
[1641334528187,2.13714744,168.66,168.59,2.02359579]
[1641334529488,2.13714744,168.66,168.58,30.6201]
[1641334533993,6.13714744,168.66,168.58,30.6201]
[1641334534395,2.13714744,168.65,168.58,30.6201]
[1641334534995,6.13714744,168.65,168.58,30.6201]
[1641334535196,6.13714744,168.65,168.57,27.66479]
[1641334535795,2.13714744,168.64,168.57,27.66479]
[1641334536697,34.22894744,168.64,168.55,29.9922]
[1641334537198,38.22894744,168.64,168.55,29.9922]
[1641334537398,36.0918,168.64,168.56,2.02349783]
[1641334539199,63.75659,168.64,168.56,2.02349783]
[1641334539500,59.75659,168.64,168.56,2.02349783]
[1641334539899,63.75659,168.64,168.56,2.02349783]
[1641334540200,59.75659,168.64,168.56,2.02349783]
[1641334541502,53.06649988,168.64,168.56,2.02349783]
[1641334543104,25.40170988,168.64,168.56,2.02349783]
[1641334546605,29.40170988,168.64,168.56,2.02349783]
[1641334548712,2.14807216,168.63,168.56,14.50640384]
[1641334548913,2.14807216,168.63,168.56,22.71610165]
[1641334549413,2.14807216,168.63,168.56,14.50640384]
[1641334549613,14.63097817,168.63,168.56,2.02349783]
[1641334553418,12.48290601,168.62,168.56,2.02349783]
[1641334554718,14.63097817,168.63,168.56,2.02349783]
[1641334556924,14.63097817,168.63,168.57,20.0]
[1641334557123,14.63097817,168.63,168.6,20.0]
[1641334557524,12.48290601,168.66,168.6,20.0]
[1641334557721,12.48290601,168.66,168.63,20.0]
[1641334557924,12.48290601,168.66,168.63,47.66479]
[1641334558722,12.48290601,168.67,168.63,47.66479]
[1641334559723,12.48290601,168.7,168.64,1.97345202]
[1641334561829,12.48290601,168.7,168.66,47.66479]
[1641334562027,12.48290601,168.7,168.66,51.84449698]
[1641334566530,12.48290601,168.71,168.67,6.15323802]
[1641334572836,12.48290601,168.72,168.68,4.17970698]
[1641334573437,12.48290601,168.71,168.68,4.17970698]
[1641334576536,12.48290601,168.71,168.67,6.15323802]
[1641334577137,12.48290601,168.71,168.68,4.17970698]
[1641334577337,12.48290601,168.72,168.68,4.17970698]
[1641334578540,12.48290601,168.71,168.67,6.15323802]
[1641334579040,12.48290601,168.72,168.68,4.17970698]
[1641334579641,12.48290601,168.71,168.67,6.15323802]
[1641334588151,12.48290601,168.7,168.66,51.84449698]
[1641334592755,12.48290601,168.7,168.66,31.84449698]
[1641334592955,12.48290601,168.7,168.66,51.84449698]
[1641334602169,12.48290601,168.7,168.66,31.84449698]
[1641334602570,12.48290601,168.69,168.65,4.17970698]
[1641334603172,12.54240093,168.67,168.63,31.84449698]
[1641334603874,12.54240093,168.67,168.63,27.66479]
[1641334604080,12.54240093,168.66,168.62,4.17970698]
[1641334604875,10.82237252,168.68,168.62,4.17970698]
[1641334605775,12.54279857,168.66,168.62,4.17970698]
[1641334607377,12.54279857,168.65,168.61,6.15295141]
[1641334608779,10.82237252,168.68,168.6,31.84449698]
[1641334608780,12.54279857,168.64,168.6,31.84449698]
[1641334608979,12.54279857,168.64,168.6,24.17970698]
[1641334609679,44.21249859,168.68,168.6,24.17970698]
[1641334609880,44.21249859,168.68,168.61,6.15285518]
[1641334610381,12.54419895,168.64,168.61,6.15285518]
[1641334611383,48.21249859,168.68,168.61,6.15285518]
[1641334612182,12.54423227,168.64,168.6,4.17970698]
[1641334613184,2.14807216,168.67,168.6,4.17970698]
[1641334613384,10.82237252,168.67,168.6,4.17970698]
[1641334614084,12.54437573,168.64,168.6,4.17970698]
[1641334614486,10.82237252,168.67,168.6,4.17970698]
[1641334615289,12.5443445,168.64,168.6,4.17970698]
[1641334615493,12.5443445,168.64,168.6,24.17970698]
[1641334616893,12.5443445,168.65,168.61,6.15285518]
[1641334617895,12.5443445,168.64,168.61,6.15285518]
[1641334618695,14.82237252,168.67,168.6,4.17970698]
[1641334619296,12.54403987,168.64,168.6,4.17970698]
[1641334620101,2.14807216,168.66,168.6,4.17970698]
[1641334620901,12.54433431,168.64,168.6,4.17970698]
[1641334621501,12.54433431,168.63,168.59,6.15286573]
[1641334622103,12.54433431,168.63,168.59,4.17970698]
[1641334622304,2.14807216,168.67,168.58,27.66479]
[1641334622704,6.14807216,168.67,168.58,27.66479]
[1641334623706,2.14807216,168.67,168.58,27.66479]
[1641334624007,2.14807216,168.66,168.58,27.66479]
[1641334624407,2.14807216,168.67,168.58,27.66479]
[1641334625008,6.14807216,168.67,168.58,27.66479]
[1641334625210,2.14807216,168.67,168.58,27.66479]
[1641334625608,4.15427423,168.64,168.58,27.66479]
[1641334627609,4.15427423,168.64,168.6,20.0]
[1641334631411,2.14807216,168.67,168.6,20.0]
[1641334631611,12.46287837,168.64,168.6,24.17970698]
[1641334637616,12.46287837,168.63,168.6,20.0]
[1641334638721,44.2149599,168.67,168.6,20.0]
[1641334639621,12.54304715,168.63,168.6,20.0]
[1641334640221,44.2149599,168.67,168.6,20.0]
[1641334641021,12.54306648,168.63,168.6,20.0]
[1641334641723,12.54262399,168.64,168.6,24.17970698]
[1641334642322,12.54262399,168.64,168.61,27.66479]
[1641334643124,12.54262399,168.64,168.63,20.0]
[1641334643524,12.54262399,168.65,168.63,24.0]
[1641334643724,12.54262399,168.65,168.64,24.0]
[1641334643922,12.54262399,168.65,168.64,20.0]
[1641334644422,12.54262399,168.65,168.64,47.66479]
[1641334644923,4.17960176,168.66,168.64,49.63791579]
[1641334645424,1.76e-06,168.66,168.64,49.63791579]
[1641334645724,12.54262399,168.7,168.65,5.97312579]
[1641334645926,12.54262399,168.7,168.67,20.0]
[1641334647226,33.39012607,168.74,168.67,20.0]
[1641334648029,12.53828992,168.7,168.67,20.0]
[1641334648426,33.39012607,168.74,168.67,20.0]
[1641334649229,12.53832501,168.7,168.67,20.0]
[1641334649732,33.39012607,168.74,168.67,20.0]
[1641334649931,12.53818165,168.71,168.67,20.0]
[1641334651134,12.53818165,168.7,168.67,20.0]
[1641334651834,12.5383013,168.71,168.67,20.0]
[1641334652237,12.5383013,168.71,168.68,27.66479]
[1641334652436,12.5383013,168.7,168.68,27.66479]
[1641334652937,12.53979876,168.71,168.68,27.66479]
[1641334654537,14.70887027,168.75,168.68,27.66479]
[1641334656238,2.16907151,168.74,168.68,27.66479]
[1641334659047,2.16907151,168.75,168.68,27.66479]
[1641334662449,2.16907151,168.75,168.7,20.0]
[1641334663748,12.53979876,168.73,168.7,20.0]
[1641334664749,10.73761433,168.75,168.7,20.0]
[1641334665350,12.53835617,168.73,168.7,20.0]
[1641334666350,12.53835617,168.73,168.71,27.66479]
[1641334666551,10.73761433,168.75,168.71,27.66479]
[1641334667454,12.53810022,168.73,168.71,27.66479]
[1641334668754,44.1277404,168.77,168.71,27.66479]
[1641334669555,12.53806296,168.73,168.71,27.66479]
[1641334670155,44.1277404,168.77,168.71,27.66479]
[1641334671056,12.53864523,168.73,168.71,27.66479]
[1641334673861,44.1277404,168.77,168.71,27.66479]
[1641334674964,12.53874274,168.73,168.71,27.66479]
[1641334675563,12.53874274,168.72,168.71,27.66479]
[1641334676365,33.39012607,168.76,168.71,27.66479]
[1641334677165,12.53879585,168.72,168.71,27.66479]
[1641334677668,33.39012607,168.76,168.71,27.66479]
[1641334677866,12.53851177,168.73,168.71,27.66479]
[1641334678466,12.53851177,168.74,168.71,27.66479]
[1641334683276,12.53851177,168.74,168.68,27.66479]
[1641334684676,12.53851177,168.72,168.68,27.66479]
[1641334686376,12.53851177,168.72,168.7,20.0]
[1641334687679,12.53843838,168.73,168.7,20.0]
[1641334691682,12.53843838,168.74,168.7,20.0]
[1641334692482,12.53843838,168.74,168.71,27.66479]
[1641334694989,12.53843838,168.73,168.71,27.66479]
[1641334695388,44.1277404,168.77,168.71,27.66479]
[1641334696191,12.5385576,168.73,168.71,27.66479]
[1641334696992,44.1277404,168.77,168.71,27.66479]
[1641334697693,12.53857206,168.73,168.71,27.66479]
[1641334699797,44.1277404,168.77,168.71,27.66479]
[1641334699997,12.53736314,168.75,168.71,27.66479]
[1641334700200,12.53736314,168.75,168.73,20.0]
[1641334700597,12.53736314,168.74,168.73,20.0]
[1641334701399,10.73761433,168.77,168.73,20.0]
[1641334701999,12.53690891,168.74,168.71,27.66479]
[1641334702603,10.73761433,168.77,168.71,27.66479]
[1641334703904,12.5374141,168.74,168.71,27.66479]
[1641334704505,12.5374141,168.73,168.71,27.66479]
[1641334705205,12.53751414,168.74,168.71,27.66479]
[1641334705905,12.53751414,168.74,168.73,20.0]
[1641334708809,12.53751414,168.75,168.73,20.0]
[1641334709510,10.73761433,168.77,168.73,20.0]
[1641334710411,12.53632754,168.75,168.73,20.0]
[1641334711611,10.73761433,168.77,168.73,20.0]
[1641334712312,12.53622647,168.75,168.73,20.0]
[1641334720922,12.53622647,168.75,168.71,31.84398065]
[1641334721722,12.53622647,168.72,168.69,4.17919065]
[1641334722329,35.55919758,168.76,168.69,6.19036605]
[1641334722823,4.0,168.75,168.69,6.19036605]
[1641334724126,4.0,168.75,168.69,4.17919065]
[1641334724325,12.53752092,168.72,168.68,51.84398065]
[1641334724928,12.53821022,168.71,168.68,47.66479]
[1641334725626,10.73761433,168.73,168.68,47.66479]
[1641334726227,12.5387977,168.71,168.68,47.66479]
[1641334729137,10.73761433,168.73,168.68,47.66479]
[1641334729937,12.53880858,168.71,168.68,47.66479]
[1641334731237,12.53942667,168.7,168.68,47.66479]
[1641334732641,10.73761433,168.73,168.68,47.66479]
[1641334733742,12.5392505,168.7,168.68,47.66479]
[1641334734442,10.73761433,168.73,168.68,47.66479]
[1641334734644,10.73761433,168.73,168.68,20.0]
[1641334735746,12.53929096,168.7,168.68,20.0]
[1641334737548,4.15711714,168.71,168.68,20.0]
[1641334740751,4.15672754,168.72,168.68,47.66479]
[1641334741452,2.16907151,168.73,168.68,47.66479]
[1641334742053,4.15672574,168.72,168.68,47.66479]
[1641334742854,2.16907151,168.73,168.68,47.66479]
[1641334743859,4.1567254,168.72,168.68,47.66479]
[1641334744659,2.16907151,168.73,168.68,47.66479]
[1641334746161,4.15668573,168.72,168.68,47.66479]
[1641334746562,12.53929096,168.71,168.68,47.66479]
[1641334747260,10.73764848,168.73,168.68,47.66479]
[1641334747961,12.53845946,168.71,168.68,47.66479]
[1641334748464,10.73764848,168.73,168.68,47.66479]
[1641334749365,12.53844257,168.71,168.68,47.66479]
[1641334749964,10.73764848,168.73,168.68,47.66479]
[1641334750866,12.53844939,168.71,168.68,20.0]
[1641334755571,10.73764848,168.73,168.68,20.0]
[1641334756475,12.53825529,168.71,168.68,20.0]
[1641334757075,12.5381019,168.72,168.68,24.17919065]
[1641334757577,16.5381019,168.72,168.68,24.17919065]
[1641334757775,12.5381019,168.72,168.68,4.17919065]
[1641334757980,12.5381019,168.72,168.67,4.17919065]
[1641334758176,12.5381019,168.71,168.67,4.17919065]
[1641334758775,14.73764848,168.73,168.67,4.17919065]
[1641334758978,2.16907151,168.72,168.66,33.84009065]
[1641334759476,4.17557451,168.67,168.66,33.84009065]
[1641334759677,4.17557451,168.67,168.66,4.17919065]
[1641334760178,43.52732352,168.71,168.66,4.17919065]
[1641334760378,2.16907151,168.7,168.66,6.18831275]
[1641334760979,4.17557434,168.67,168.66,6.18831275]
[1641334761478,2.1664564,168.7,168.66,6.18831275]
[1641334762181,4.17562794,168.67,168.65,51.84398065]
[1641334763380,2.16651462,168.7,168.65,51.84398065]
[1641334763680,6.16651462,168.7,168.65,51.84398065]
[1641334763883,4.17580127,168.66,168.65,51.84398065]
[1641334764083,4.17580127,168.66,168.65,4.17919065]
[1641334764481,8.17580127,168.66,168.61,12.48290601]
[1641334764680,4.0,168.66,168.64,6.18495036]
[1641334765079,4.0,168.65,168.64,6.18495036]
[1641334765482,4.0,168.65,168.64,2.00905865]
[1641334765781,14.69355658,168.65,168.59,2.00905865]
[1641334766584,4.0,168.63,168.59,2.00905865]
[1641334766782,4.0,168.64,168.59,2.00905865]
[1641334766982,4.0,168.63,168.59,2.00905865]
[1641334767183,2.16683306,168.62,168.58,2.00905865]
[1641334767985,14.69750365,168.63,168.58,20.0]
[1641334768184,14.69750365,168.63,168.57,2.00905865]
[1641334768784,18.69750365,168.63,168.57,2.00905865]
[1641334768982,18.69750365,168.63,168.56,2.00905865]
[1641334769484,2.17078013,168.62,168.56,2.00905865]
[1641334770288,12.52672352,168.63,168.56,2.00905865]
[1641334771087,12.52672352,168.62,168.56,2.00905865]
[1641334771788,12.5449614,168.61,168.56,2.00905865]
[1641334772388,31.727,168.62,168.56,2.00905865]
[1641334772688,2.20834824,168.61,168.56,2.00905865]
[1641334773089,31.727,168.62,168.56,2.00905865]
[1641334773789,2.20852402,168.61,168.56,2.00905865]
[1641334774789,48.27188945,168.62,168.55,20.0]
[1641334774989,35.727,168.62,168.55,20.0]
[1641334776290,4.0,168.61,168.55,20.0]
[1641334778494,4.0,168.61,168.52,47.66479]
[1641334779294,4.0,168.6,168.52,47.66479]
[1641334779795,4.0,168.61,168.52,47.66479]
[1641334780494,4.0,168.61,168.6,6.69131195]
[1641334780794,4.0,168.61,168.52,47.66479]
[1641334780997,4.0,168.6,168.52,47.66479]
[1641334782695,4.0,168.61,168.52,47.66479]
[1641334788201,14.7540029,168.6,168.53,1.97300756]
[1641334790104,12.54488945,168.6,168.53,1.97300756]
[1641334791408,12.54488945,168.59,168.53,1.97300756]
[1641334792510,12.54488945,168.59,168.55,20.0]
[1641334794010,12.54488945,168.59,168.56,1.97300756]
[1641334794208,12.54488945,168.61,168.56,1.97300756]
[1641334801421,14.7540029,168.61,168.56,1.97300756]
[1641334802322,12.54488945,168.6,168.56,1.97300756]
[1641334802822,12.54488945,168.61,168.56,1.97300756]
[1641334804324,14.7540029,168.61,168.56,1.97300756]
[1641334804826,18.7540029,168.61,168.56,1.97300756]
[1641334805024,14.7540029,168.61,168.56,1.97300756]
[1641334805225,4.0,168.6,168.56,1.97300756]
[1641334805827,14.7540029,168.61,168.56,1.97300756]
[1641334806628,12.54488945,168.6,168.56,1.97300756]
[1641334807332,18.7540029,168.61,168.56,1.97300756]
[1641334808132,2.20911345,168.6,168.56,1.97300756]
[1641334809839,14.7540029,168.6,168.56,1.97300756]
[1641334811340,12.54488945,168.6,168.56,1.97300756]
[1641334814854,18.7540029,168.6,168.56,1.97300756]
[1641334815046,14.7540029,168.6,168.56,1.97300756]
[1641334815246,2.20911345,168.59,168.56,1.97300756]
[1641334816147,14.7540029,168.6,168.56,1.97300756]
[1641334816948,14.7540029,168.6,168.55,1.97300756]
[1641334817650,2.20911345,168.6,168.55,1.97300756]
[1641334818152,4.0,168.56,168.55,1.97300756]
[1641334818351,4.0,168.56,168.53,12.48290601]
[1641334818551,4.0,168.55,168.53,12.48290601]
[1641334818752,2.20911345,168.6,168.53,12.48290601]
[1641334818954,4.0,168.56,168.53,12.48290601]
[1641334819354,16.54488945,168.56,168.49,12.48290601]
[1641334819754,12.54488945,168.56,168.49,12.48290601]
[1641334820255,16.54488945,168.57,168.49,12.48290601]
[1641334820855,16.54488945,168.57,168.49,44.10490601]
[1641334822357,12.54488945,168.57,168.49,44.10490601]
[1641334822957,16.54488945,168.57,168.49,44.10490601]
[1641334823557,12.54488945,168.57,168.49,44.10490601]
[1641334823756,16.54488945,168.57,168.49,44.10490601]
[1641334824457,4.0,168.57,168.5,20.48509678]
[1641334825161,49.20348945,168.58,168.51,27.66479]
[1641334825361,12.54488945,168.57,168.54,4.18257413]
[1641334826261,45.20348945,168.58,168.54,4.18257413]
[1641334831666,4.0,168.56,168.54,4.18257413]
[1641334831866,4.0,168.57,168.54,4.18257413]
[1641334832066,49.20348945,168.58,168.54,4.18257413]
[1641334832266,12.54488945,168.56,168.52,4.18257413]
[1641334837173,12.54488945,168.57,168.53,4.18257413]
[1641334837673,16.54488945,168.57,168.53,4.18257413]
[1641334838575,12.54488945,168.56,168.52,4.18257413]
[1641334839175,12.54488945,168.56,168.53,4.18257413]
[1641334840575,12.54488945,168.57,168.53,4.18257413]
[1641334842479,45.20348945,168.58,168.54,4.18257413]
[1641334845684,32.6586,168.58,168.54,4.18257413]
[1641334845883,32.6586,168.58,168.55,4.18257413]
[1641334846286,12.54488945,168.59,168.55,4.18257413]
[1641334847185,63.77469,168.61,168.53,4.18257413]
[1641334847186,12.54488945,168.57,168.53,4.18257413]
[1641334848688,8.72850496,168.6,168.54,4.18257413]
[1641334849287,12.54762352,168.58,168.54,4.18257413]
[1641334850589,12.54762352,168.57,168.53,4.18257413]
[1641334851189,12.72850496,168.6,168.53,4.18257413]
[1641334851889,12.54786084,168.57,168.53,4.18257413]
[1641334852590,12.72850496,168.6,168.54,4.18257413]
[1641334853490,12.54796324,168.57,168.53,4.18257413]
[1641334856097,12.72850496,168.6,168.53,4.18257413]
[1641334856598,12.72850496,168.6,168.54,4.18257413]
[1641334856797,12.54783282,168.57,168.54,4.18257413]
[1641334857398,12.72850496,168.6,168.54,4.18257413]
[1641334857896,12.54781993,168.57,168.54,4.18257413]
[1641334858697,2.22743095,168.59,168.54,4.18257413]
[1641334859100,6.22743095,168.59,168.54,4.18257413]
[1641334859299,12.54779504,168.58,168.54,4.18257413]
[1641334860601,12.54779504,168.57,168.53,6.13774589]
[1641334861203,2.22743095,168.57,168.53,6.13774589]
[1641334861602,6.22743095,168.57,168.53,6.13774589]
[1641334861801,6.22743095,168.57,168.51,20.0]
[1641334861802,12.54896145,168.56,168.52,6.13774589]
[1641334862501,14.77679228,168.56,168.52,6.13774589]
[1641334864204,14.77679228,168.56,168.51,24.18257413]
[1641334865006,4.17917633,168.52,168.51,20.0]
[1641334865204,4.17917633,168.52,168.5,4.18257413]
[1641334865905,14.77679228,168.56,168.5,6.1357925]
[1641334866605,4.17923849,168.51,168.5,6.1357925]
[1641334867404,12.54896145,168.55,168.5,6.1357925]
[1641334867605,4.1791933,168.52,168.5,6.1357925]
[1641334868107,12.54896145,168.55,168.5,6.1357925]
[1641334869206,4.17925596,168.52,168.5,6.1357925]
[1641334869806,12.54896145,168.55,168.51,4.18257413]
[1641334870306,2.22783083,168.56,168.51,4.18257413]
[1641334871106,6.22783083,168.56,168.51,4.18257413]
[1641334871309,2.22783083,168.56,168.51,4.18257413]
[1641334871506,6.22783083,168.56,168.51,4.18257413]
[1641334871907,12.55108225,168.53,168.49,6.1357925]
[1641334877010,10.95633579,168.54,168.49,6.1357925]
[1641334877614,12.55123716,168.52,168.49,6.1357925]
[1641334879012,10.95633579,168.54,168.49,6.1357925]
[1641334879214,12.55065241,168.53,168.5,4.18257413]
[1641334879814,10.95633579,168.54,168.49,6.1357925]
[1641334880318,12.55090854,168.53,168.49,6.1357925]
[1641334883823,12.55090854,168.53,168.49,4.18257413]
[1641334884024,12.55090854,168.52,168.48,24.18257413]
[1641334884625,2.22783083,168.54,168.48,20.0]
[1641334885329,4.16941616,168.51,168.48,20.0]
[1641334886229,2.22783083,168.54,168.48,20.0]
[1641334886829,4.16938529,168.51,168.48,20.0]
[1641334887529,4.0,168.51,168.46,31.84736413]
[1641334887729,2.22783083,168.54,168.46,4.18257413]
[1641334887932,4.357,168.51,168.46,4.18257413]
[1641334888130,4.16970343,168.5,168.45,6.13065794]
[1641334888530,8.16970343,168.5,168.45,6.13065794]
[1641334888930,4.0,168.5,168.45,6.13065794]
[1641334889232,4.17021494,168.48,168.43,6.13065794]
[1641334889631,2.22783083,168.5,168.43,6.13065794]
[1641334889831,2.22783083,168.49,168.43,6.13065794]
[1641334890733,4.17022069,168.48,168.44,4.18257413]
[1641334891434,2.22224034,168.5,168.43,6.13065794]
[1641334891934,4.17021869,168.48,168.43,6.13065794]
[1641334892734,4.17020547,168.49,168.44,4.18257413]
[1641334893435,12.50781653,168.5,168.46,4.18257413]
[1641334894435,14.96617772,168.51,168.46,4.18257413]
[1641334894835,2.22991656,168.5,168.46,4.18257413]
[1641334895037,19.91991236,168.5,168.46,4.18257413]
[1641334896037,2.22991656,168.49,168.46,4.18257413]
[1641334896237,5.136,168.5,168.46,4.18257413]
[1641334896838,17.69011332,168.5,168.46,4.18257413]
[1641334897539,2.22994449,168.49,168.46,4.18257413]
[1641334898538,62.39719,168.52,168.46,4.18257413]
[1641334898839,12.55356325,168.51,168.47,4.18257413]
[1641334899538,14.78324779,168.51,168.47,4.18257413]
[1641334900239,62.39719,168.52,168.47,4.18257413]
[1641334900941,14.78316806,168.51,168.47,4.18257413]
[1641334901941,12.55347169,168.5,168.47,4.18257413]
[1641334902742,10.96537769,168.51,168.46,4.18257413]
[1641334903646,12.55364703,168.5,168.46,4.18257413]
[1641334904346,10.96537769,168.51,168.46,4.18257413]
[1641334904746,14.96537769,168.51,168.46,4.18257413]
[1641334904947,12.55379372,168.5,168.46,4.18257413]
[1641334906350,14.96537769,168.51,168.46,4.18257413]
[1641334906551,12.55492415,168.49,168.45,4.18257413]
[1641334908150,12.55492415,168.49,168.46,4.18257413]
[1641334909251,6.22969637,168.5,168.46,4.18257413]
[1641334909951,14.78441913,168.49,168.45,4.18257413]
[1641334910454,6.269,168.5,168.45,4.18257413]
[1641334910655,4.18490703,168.46,168.45,4.18257413]
[1641334911456,2.23022598,168.49,168.45,4.18257413]
[1641334911656,14.7850217,168.49,168.45,4.18257413]
[1641334912257,10.96587622,168.51,168.45,4.18257413]
[1641334912457,14.96587622,168.51,168.45,4.18257413]
[1641334913158,10.96587622,168.51,168.45,4.18257413]
[1641334913358,2.2301949,168.51,168.43,6.13065794]
[1641334913557,4.16985007,168.48,168.43,6.13065794]
[1641334914459,2.2301949,168.5,168.43,6.13065794]
[1641334916364,12.5095502,168.48,168.44,4.18257413]
[1641334916965,2.2301949,168.5,168.44,4.18257413]
[1641334917164,12.55599522,168.47,168.43,6.13065794]
[1641334918466,2.2301949,168.5,168.44,4.18257413]
[1641334918666,12.55539485,168.48,168.44,4.18257413]
[1641334921571,10.9677792,168.51,168.44,4.18257413]
[1641334922368,12.55534289,168.48,168.44,4.18257413]
[1641334923468,10.9677792,168.51,168.44,4.18257413]
[1641334923667,12.55533332,168.49,168.45,4.18257413]
[1641334925470,10.9677792,168.51,168.45,4.18257413]
[1641334926771,12.55528299,168.49,168.45,4.18257413]
[1641334927174,10.9677792,168.51,168.45,4.18257413]
[1641334928175,12.55551304,168.49,168.45,4.18257413]
[1641334930480,12.55551304,168.48,168.44,4.18257413]
[1641334931078,2.2301949,168.5,168.44,4.18257413]
[1641334931978,12.555636,168.48,168.44,4.18257413]
[1641334938285,14.9677792,168.51,168.44,4.18257413]
[1641334938485,14.9677792,168.51,168.45,4.18257413]
[1641334938686,4.0,168.5,168.45,4.18257413]
[1641334938886,6.378,168.5,168.45,4.18257413]
[1641334939087,31.66479,168.49,168.45,4.18257413]
[1641334939491,12.55696554,168.46,168.42,4.18257413]
[1641334940389,61.7907849,168.49,168.42,4.18257413]
[1641334940590,10.9677792,168.48,168.42,4.18257413]
[1641334941290,2.2301949,168.48,168.41,6.13065794]
[1641334942891,12.51923388,168.47,168.43,4.18257413]
[1641334945091,12.51923388,168.46,168.42,4.18257413]
[1641334945994,10.9700745,168.48,168.42,4.18257413]
[1641334946695,12.55698453,168.46,168.42,4.18257413]
[1641334947095,19.06098453,168.46,168.42,4.18257413]
[1641334947595,6.504,168.46,168.42,4.18257413]
[1641334948195,2.2301949,168.45,168.42,4.18257413]
[1641334948897,12.55720002,168.45,168.41,6.13065794]
[1641334949498,2.23135783,168.45,168.41,6.13065794]
[1641334950301,12.55752747,168.45,168.42,4.18257413]
[1641334951201,2.23137132,168.45,168.41,6.13065794]
[1641334951802,12.55752484,168.45,168.42,4.18257413]
[1641334952501,2.23141936,168.45,168.42,4.18257413]
[1641334953302,19.06165885,168.46,168.42,4.18257413]
[1641334953503,23.06165885,168.46,168.42,4.18257413]
[1641334954202,14.78883786,168.45,168.41,6.13065794]
[1641334955304,4.18566018,168.42,168.41,6.13065794]
[1641334955908,2.23112944,168.46,168.41,6.13065794]
[1641334956908,12.55704312,168.45,168.41,6.13065794]
[1641334957510,10.97100904,168.48,168.41,6.13065794]
[1641334957711,14.97100904,168.48,168.41,6.13065794]
[1641334958109,12.55717085,168.45,168.41,6.13065794]
[1641334959111,4.18566926,168.42,168.41,6.13065794]
[1641334960415,14.97100904,168.48,168.41,6.13065794]
[1641334960614,2.23112944,168.47,168.41,6.13065794]
[1641334961113,12.5568058,168.45,168.41,6.13065794]
[1641334961913,10.97100904,168.48,168.41,6.13065794]
[1641334962615,4.18557713,168.42,168.41,6.13065794]
[1641334963214,14.97100904,168.48,168.41,6.13065794]
[1641334964318,12.5574223,168.44,168.41,6.13065794]
[1641334964919,12.5572513,168.45,168.41,6.13065794]
[1641334965521,12.5572513,168.45,168.41,4.18257413]
[1641334965723,4.18026162,168.42,168.4,31.84736413]
[1641334966322,42.2100513,168.46,168.4,31.84736413]
[1641334967825,4.1803098,168.42,168.4,31.84736413]
[1641334968426,2.23112944,168.45,168.4,31.84736413]
[1641334969226,4.18029546,168.42,168.4,31.84736413]
[1641334969826,2.23112944,168.45,168.4,31.84736413]
[1641334970728,4.18035282,168.42,168.4,31.84736413]
[1641334971529,2.23112944,168.45,168.41,6.13710854]
[1641334971530,14.78838074,168.45,168.41,6.13710854]
[1641334971928,14.78838074,168.45,168.41,4.18257413]
[1641334972129,12.5572513,168.44,168.4,31.84736413]
[1641334973233,14.78863372,168.45,168.41,6.13709948]
[1641334975333,12.55750428,168.44,168.4,31.84736413]
[1641334975934,10.97184452,168.45,168.4,31.84736413]
[1641334976633,2.23112944,168.45,168.4,31.84736413]
[1641334976834,14.7885228,168.45,168.41,6.13710688]
[1641334978035,14.7885228,168.45,168.41,4.18257413]
[1641334978239,12.55739336,168.44,168.4,31.84736413]
[1641334979137,10.97184236,168.45,168.4,31.84736413]
[1641334979937,12.55762257,168.44,168.4,31.84736413]
[1641334980740,10.97184236,168.45,168.4,31.84736413]
[1641334981339,12.55759592,168.44,168.4,31.84736413]
[1641334982141,10.97184236,168.45,168.4,31.84736413]
[1641334982841,14.78839548,168.45,168.41,6.13711536]
[1641334985947,29.6528,168.46,168.41,6.13711536]
[1641334986746,14.7884514,168.45,168.41,6.13711536]
[1641334987448,29.6528,168.46,168.41,6.13711536]
[1641334988649,14.7885333,168.45,168.41,6.13711536]
[1641334989248,12.557304,168.44,168.4,31.84736413]